[Event "Titled Tuesday Blitz October 31 Early 2023"]
[White "Reprintsev, Alexander"]
[Black "Semenova, Alina"]
[WhiteFideId "14100541"]
[BlackFideId "24113875"]
[WhiteElo "2514"]
[BlackElo "2171"]
[Result "1-0"]
[Round "7"]
[TimeControl "180+1"]
[Date "2023.10.31"]
[WhiteClock "0:00:51"]
[BlackClock "0:00:10"]
[Board "94"]

1. e4 {[%clk 0:02:55]}  e6 {[%clk 0:02:57]} 2. d4 {[%clk 0:02:53]}  d5 {[%clk 0:02:57]} 3. Nc3 {[%clk 0:02:52]}  Bb4 {[%clk 0:02:56]} 4. Ne2 {[%clk 0:02:51]}  Nf6 {[%clk 0:02:51]} 5. e5 {[%clk 0:02:31]}  Nfd7 {[%clk 0:02:50]} 6. a3 {[%clk 0:02:30]}  Bxc3+ {[%clk 0:02:49]} 7. Nxc3 {[%clk 0:02:30]}  O-O {[%clk 0:02:49]} 8. g3 {[%clk 0:02:29]}  c5 {[%clk 0:02:49]} 9. dxc5 {[%clk 0:02:20]}  Nxe5 {[%clk 0:02:47]} 10. f4 {[%clk 0:02:17]}  Ned7 {[%clk 0:02:45]} 11. Be3 {[%clk 0:02:16]}  Nc6 {[%clk 0:02:33]} 12. b4 {[%clk 0:02:13]}  a6 {[%clk 0:02:32]} 13. Bg2 {[%clk 0:02:12]}  Qf6 {[%clk 0:02:18]} 14. Ne2 {[%clk 0:02:06]}  Re8 {[%clk 0:02:06]} 15. O-O {[%clk 0:02:05]}  Nf8 {[%clk 0:02:05]} 16. Nd4 {[%clk 0:02:02]}  Bd7 {[%clk 0:02:04]} 17. Nxc6 {[%clk 0:02:02]}  Bxc6 {[%clk 0:02:05]} 18. Bd4 {[%clk 0:02:02]}  Qe7 {[%clk 0:02:05]} 19. Qd2 {[%clk 0:01:54]}  f6 {[%clk 0:02:00]} 20. Rae1 {[%clk 0:01:53]}  Qc7 {[%clk 0:01:57]} 21. Qc3 {[%clk 0:01:48]}  Nd7 {[%clk 0:01:54]} 22. Qb3 {[%clk 0:01:45]}  Rad8 {[%clk 0:01:52]} 23. Bb2 {[%clk 0:01:43]}  Nf8 {[%clk 0:01:48]} 24. h3 {[%clk 0:01:42]}  Ng6 {[%clk 0:01:48]} 25. Kh2 {[%clk 0:01:42]}  e5 {[%clk 0:01:47]} 26. fxe5 {[%clk 0:01:39]}  fxe5 {[%clk 0:01:43]} 27. h4 {[%clk 0:01:30]}  e4 {[%clk 0:01:19]} 28. h5 {[%clk 0:01:29]}  Nh4 {[%clk 0:01:16]} 29. Qe3 {[%clk 0:01:18]}  Nxg2 {[%clk 0:01:10]} 30. Kxg2 {[%clk 0:01:18]}  Rf8 {[%clk 0:01:03]} 31. Bd4 {[%clk 0:01:14]}  Bd7 {[%clk 0:00:56]} 32. Qg5 {[%clk 0:01:08]}  Be6 {[%clk 0:00:53]} 33. h6 {[%clk 0:01:05]}  g6 {[%clk 0:00:52]} 34. Rf6 {[%clk 0:01:03]}  Bf5 {[%clk 0:00:47]} 35. Rf1 {[%clk 0:00:54]}  e3 {[%clk 0:00:21]} 36. R1xf5 {[%clk 0:00:51]}  e2 {[%clk 0:00:10]} 37. Rxg6+ {[%clk 0:00:51]} 1-0


[Site "https://www.chess.com"]

[Event "Titled Tuesday Blitz October 31 Early 2023"]
[White "Lehtosaari, Mauri"]
[Black "Samarth J Rao"]
[WhiteFideId "501999"]
[BlackFideId "46652370"]
[WhiteElo "2509"]
[BlackElo "2124"]
[Result "1-0"]
[Round "7"]
[TimeControl "180+1"]
[Date "2023.10.31"]
[WhiteClock "0:01:15"]
[BlackClock "0:01:07"]
[Board "95"]

1. d4 {[%clk 0:03:00]}  d5 {[%clk 0:02:49]} 2. Nf3 {[%clk 0:02:52]}  Nf6 {[%clk 0:02:48]} 3. Bg5 {[%clk 0:02:52]}  Ne4 {[%clk 0:02:40]} 4. Bf4 {[%clk 0:02:50]}  c5 {[%clk 0:02:27]} 5. e3 {[%clk 0:02:49]}  Nc6 {[%clk 0:02:27]} 6. c3 {[%clk 0:02:46]}  c4 {[%clk 0:02:28]} 7. Nbd2 {[%clk 0:02:40]}  Bf5 {[%clk 0:02:26]} 8. Nh4 {[%clk 0:02:25]}  Bg6 {[%clk 0:02:16]} 9. Nxg6 {[%clk 0:02:24]}  hxg6 {[%clk 0:02:16]} 10. Nxe4 {[%clk 0:02:24]}  dxe4 {[%clk 0:02:17]} 11. Bxc4 {[%clk 0:02:23]}  e6 {[%clk 0:02:16]} 12. Qb3 {[%clk 0:02:19]}  Qd7 {[%clk 0:02:13]} 13. d5 {[%clk 0:02:05]}  exd5 {[%clk 0:02:07]} 14. Bxd5 {[%clk 0:02:05]}  Na5 {[%clk 0:02:00]} 15. Qd1 {[%clk 0:01:37]}  g5 {[%clk 0:01:27]} 16. Bg3 {[%clk 0:01:32]}  O-O-O {[%clk 0:01:25]} 17. Bxe4 {[%clk 0:01:23]}  Qb5 {[%clk 0:01:20]} 18. Qg4+ {[%clk 0:01:16]}  Rd7 {[%clk 0:01:13]} 19. Bf5 {[%clk 0:01:17]}  Qxb2 {[%clk 0:01:07]} 20. Bxd7+ {[%clk 0:01:15]} 1-0


[Site "https://www.chess.com"]

[Event "Titled Tuesday Blitz October 31 Early 2023"]
[White "Antonio, Jorge Carlos"]
[Black "Golubev, Mikhail"]
[WhiteFideId "113190"]
[BlackFideId "14100983"]
[WhiteElo "2325"]
[BlackElo "2552"]
[Result "1/2-1/2"]
[Round "7"]
[TimeControl "180+1"]
[Date "2023.10.31"]
[WhiteClock "0:01:06"]
[BlackClock "0:00:17"]
[Board "101"]

1. d4 {[%clk 0:02:34]}  g6 {[%clk 0:02:57]} 2. e4 {[%clk 0:02:31]}  Bg7 {[%clk 0:02:57]} 3. Nf3 {[%clk 0:02:30]}  d6 {[%clk 0:02:56]} 4. c4 {[%clk 0:02:27]}  Bg4 {[%clk 0:02:52]} 5. Nc3 {[%clk 0:02:23]}  Nc6 {[%clk 0:02:49]} 6. Be3 {[%clk 0:02:18]}  Bxf3 {[%clk 0:02:43]} 7. gxf3 {[%clk 0:02:16]}  e5 {[%clk 0:02:43]} 8. dxe5 {[%clk 0:02:09]}  dxe5 {[%clk 0:02:37]} 9. Qxd8+ {[%clk 0:02:05]}  Rxd8 {[%clk 0:02:34]} 10. Nd5 {[%clk 0:02:04]}  Nd4 {[%clk 0:02:15]} 11. Bxd4 {[%clk 0:01:59]}  exd4 {[%clk 0:02:16]} 12. Nxc7+ {[%clk 0:01:55]}  Kd7 {[%clk 0:02:13]} 13. Nd5 {[%clk 0:01:55]}  Ne7 {[%clk 0:02:04]} 14. Bd3 {[%clk 0:01:53]}  Nxd5 {[%clk 0:01:54]} 15. exd5 {[%clk 0:01:49]}  Bf8 {[%clk 0:01:23]} 16. a3 {[%clk 0:01:45]}  a5 {[%clk 0:01:23]} 17. h4 {[%clk 0:01:40]}  h5 {[%clk 0:01:20]} 18. f4 {[%clk 0:01:38]}  Bd6 {[%clk 0:01:09]} 19. Ke2 {[%clk 0:01:32]}  Bxf4 {[%clk 0:01:00]} 20. c5 {[%clk 0:01:28]}  b6 {[%clk 0:00:49]} 21. b4 {[%clk 0:01:24]}  bxc5 {[%clk 0:00:23]} 22. bxc5 {[%clk 0:01:23]}  Rb8 {[%clk 0:00:23]} 23. Rab1 {[%clk 0:01:16]}  Rhc8 {[%clk 0:00:17]} 24. Kf3 {[%clk 0:01:06]}  Bh6 {[%clk 0:00:17]} 1/2-1/2


[Site "https://www.chess.com"]

[Event "Titled Tuesday Blitz October 31 Early 2023"]
[White "Avalos Parra, Joao"]
[Black "sjoerd893"]
[WhiteFideId "3402541"]
[WhiteElo "2355"]
[BlackElo "2521"]
[Result "0-1"]
[Round "7"]
[TimeControl "180+1"]
[Date "2023.10.31"]
[WhiteClock "0:00:00"]
[BlackClock "0:00:06"]
[Board "102"]

1. d4 {[%clk 0:02:51]}  d5 {[%clk 0:02:59]} 2. c4 {[%clk 0:02:51]}  c6 {[%clk 0:02:59]} 3. Nf3 {[%clk 0:02:51]}  Nf6 {[%clk 0:02:59]} 4. Nc3 {[%clk 0:02:52]}  e6 {[%clk 0:02:58]} 5. Bg5 {[%clk 0:02:52]}  h6 {[%clk 0:02:58]} 6. Bxf6 {[%clk 0:02:48]}  Qxf6 {[%clk 0:02:59]} 7. e3 {[%clk 0:02:48]}  Nd7 {[%clk 0:02:54]} 8. Be2 {[%clk 0:02:46]}  dxc4 {[%clk 0:02:54]} 9. Bxc4 {[%clk 0:02:45]}  g6 {[%clk 0:02:53]} 10. O-O {[%clk 0:02:45]}  Bg7 {[%clk 0:02:53]} 11. a4 {[%clk 0:02:36]}  O-O {[%clk 0:02:53]} 12. a5 {[%clk 0:02:37]}  e5 {[%clk 0:02:42]} 13. Qb3 {[%clk 0:02:09]}  exd4 {[%clk 0:02:32]} 14. Nxd4 {[%clk 0:02:07]}  Ne5 {[%clk 0:02:26]} 15. Be2 {[%clk 0:02:05]}  Rb8 {[%clk 0:01:55]} 16. Ne4 {[%clk 0:01:58]}  Qe7 {[%clk 0:01:52]} 17. Rfc1 {[%clk 0:01:56]}  Bg4 {[%clk 0:01:19]} 18. Bf1 {[%clk 0:01:49]}  Kh7 {[%clk 0:01:03]} 19. h3 {[%clk 0:01:33]}  Bd7 {[%clk 0:00:53]} 20. Nc5 {[%clk 0:01:33]}  b6 {[%clk 0:00:46]} 21. axb6 {[%clk 0:01:26]}  axb6 {[%clk 0:00:47]} 22. Na6 {[%clk 0:01:17]}  Rb7 {[%clk 0:00:40]} 23. g3 {[%clk 0:01:02]}  c5 {[%clk 0:00:34]} 24. Bg2 {[%clk 0:00:57]}  Ra7 {[%clk 0:00:26]} 25. Nb5 {[%clk 0:00:56]}  Bxb5 {[%clk 0:00:16]} 26. Qxb5 {[%clk 0:00:56]}  Qf6 {[%clk 0:00:17]} 27. Ra4 {[%clk 0:00:45]}  Nf3+ {[%clk 0:00:15]} 28. Bxf3 {[%clk 0:00:41]}  Qxf3 {[%clk 0:00:16]} 29. b4 {[%clk 0:00:34]}  Rd8 {[%clk 0:00:11]} 30. bxc5 {[%clk 0:00:16]}  Rad7 {[%clk 0:00:10]} 31. Rd4 {[%clk 0:00:04]}  Bxd4 {[%clk 0:00:10]} 32. exd4 {[%clk 0:00:05]}  Rxd4 {[%clk 0:00:10]} 33. Rf1 {[%clk 0:00:05]}  Rd1 {[%clk 0:00:08]} 34. Qb3 {[%clk 0:00:00]}  Qxb3 {[%clk 0:00:06]} 0-1


[Site "https://www.chess.com"]

[Event "Titled Tuesday Blitz October 31 Early 2023"]
[White "Heinemann, Josefine"]
[Black "Harriott, Tyrell"]
[WhiteFideId "12900460"]
[BlackFideId "2086484"]
[WhiteElo "2508"]
[BlackElo "2319"]
[Result "1-0"]
[Round "7"]
[TimeControl "180+1"]
[Date "2023.10.31"]
[WhiteClock "0:00:24"]
[BlackClock "0:00:00"]
[Board "104"]

1. e4 {[%clk 0:02:51]}  d5 {[%clk 0:02:58]} 2. exd5 {[%clk 0:02:45]}  Nf6 {[%clk 0:02:52]} 3. d4 {[%clk 0:02:42]}  Qxd5 {[%clk 0:02:51]} 4. c4 {[%clk 0:02:41]}  Qe4+ {[%clk 0:02:50]} 5. Be3 {[%clk 0:02:34]}  e5 {[%clk 0:02:49]} 6. Nc3 {[%clk 0:02:33]}  Bb4 {[%clk 0:02:41]} 7. d5 {[%clk 0:02:17]}  Bxc3+ {[%clk 0:02:19]} 8. bxc3 {[%clk 0:02:16]}  Ng4 {[%clk 0:02:18]} 9. Qd3 {[%clk 0:02:06]}  Bf5 {[%clk 0:01:46]} 10. Qxe4 {[%clk 0:01:59]}  Bxe4 {[%clk 0:01:45]} 11. Bc1 {[%clk 0:01:59]}  Bg6 {[%clk 0:01:40]} 12. Nf3 {[%clk 0:01:54]}  Nd7 {[%clk 0:01:36]} 13. Ba3 {[%clk 0:01:47]}  O-O-O {[%clk 0:01:34]} 14. Be2 {[%clk 0:01:43]}  f5 {[%clk 0:01:32]} 15. O-O {[%clk 0:01:43]}  h6 {[%clk 0:01:25]} 16. c5 {[%clk 0:01:37]}  Rde8 {[%clk 0:01:22]} 17. Rab1 {[%clk 0:01:30]}  f4 {[%clk 0:01:08]} 18. Rb2 {[%clk 0:01:29]}  Ngf6 {[%clk 0:01:04]} 19. c4 {[%clk 0:01:20]}  Ne4 {[%clk 0:00:58]} 20. c6 {[%clk 0:01:18]}  bxc6 {[%clk 0:00:53]} 21. dxc6 {[%clk 0:01:10]}  Nb6 {[%clk 0:00:28]} 22. c5 {[%clk 0:01:07]}  Na4 {[%clk 0:00:22]} 23. Ba6+ {[%clk 0:01:07]}  Kd8 {[%clk 0:00:21]} 24. Rd1+ {[%clk 0:01:03]}  Ke7 {[%clk 0:00:20]} 25. Rb7 {[%clk 0:01:03]}  Rd8 {[%clk 0:00:17]} 26. Rxc7+ {[%clk 0:01:02]}  Kf6 {[%clk 0:00:17]} 27. Re1 {[%clk 0:00:49]}  Nexc5 {[%clk 0:00:15]} 28. Bf1 {[%clk 0:00:34]}  Rhe8 {[%clk 0:00:09]} 29. Rxa7 {[%clk 0:00:33]}  Ra8 {[%clk 0:00:09]} 30. Rxa8 {[%clk 0:00:33]}  Rxa8 {[%clk 0:00:08]} 31. Rc1 {[%clk 0:00:33]}  Ne6 {[%clk 0:00:07]} 32. c7 {[%clk 0:00:31]}  Nb6 {[%clk 0:00:06]} 33. Bd6 {[%clk 0:00:31]}  Nc8 {[%clk 0:00:06]} 34. Bxe5+ {[%clk 0:00:31]}  Kf7 {[%clk 0:00:06]} 35. Bc4 {[%clk 0:00:30]}  Ke7 {[%clk 0:00:06]} 36. Bb3 {[%clk 0:00:29]}  Kd7 {[%clk 0:00:05]} 37. Nd4 {[%clk 0:00:28]}  Nxd4 {[%clk 0:00:04]} 38. Bxd4 {[%clk 0:00:29]}  Bf5 {[%clk 0:00:04]} 39. Bxg7 {[%clk 0:00:28]}  h5 {[%clk 0:00:04]} 40. Be5 {[%clk 0:00:28]}  Nb6 {[%clk 0:00:04]} 41. Bxf4 {[%clk 0:00:27]}  Bg4 {[%clk 0:00:03]} 42. f3 {[%clk 0:00:27]}  Bf5 {[%clk 0:00:01]} 43. Kf2 {[%clk 0:00:27]}  Nc8 {[%clk 0:00:01]} 44. h3 {[%clk 0:00:26]}  Be6 {[%clk 0:00:01]} 45. Rd1+ {[%clk 0:00:24]}  Ke7 {[%clk 0:00:00]} 46. Re1 {[%clk 0:00:24]} 1-0


[Site "https://www.chess.com"]

[Event "Titled Tuesday Blitz October 31 Early 2023"]
[White "Rosenberg, Evan S"]
[Black "Kuchava, Ana"]
[WhiteFideId "2019299"]
[BlackFideId "13605348"]
[WhiteElo "2475"]
[BlackElo "2251"]
[Result "1/2-1/2"]
[Round "7"]
[TimeControl "180+1"]
[Date "2023.10.31"]
[WhiteClock "0:00:06"]
[BlackClock "0:00:16"]
[Board "108"]

1. d4 {[%clk 0:03:00]}  d5 {[%clk 0:02:59]} 2. Nf3 {[%clk 0:03:01]}  Nf6 {[%clk 0:02:56]} 3. g3 {[%clk 0:03:01]}  c6 {[%clk 0:02:45]} 4. Bg2 {[%clk 0:03:00]}  Bf5 {[%clk 0:02:42]} 5. O-O {[%clk 0:03:01]}  e6 {[%clk 0:02:40]} 6. c4 {[%clk 0:03:01]}  h6 {[%clk 0:02:39]} 7. Qb3 {[%clk 0:02:51]}  Qb6 {[%clk 0:02:37]} 8. c5 {[%clk 0:02:52]}  Qxb3 {[%clk 0:02:37]} 9. axb3 {[%clk 0:02:52]}  Nbd7 {[%clk 0:02:36]} 10. b4 {[%clk 0:02:51]}  a6 {[%clk 0:02:33]} 11. Nbd2 {[%clk 0:02:48]}  g5 {[%clk 0:02:24]} 12. Nb3 {[%clk 0:02:48]}  Rb8 {[%clk 0:02:15]} 13. Na5 {[%clk 0:02:47]}  Bg7 {[%clk 0:02:12]} 14. h4 {[%clk 0:02:41]}  Ne4 {[%clk 0:02:06]} 15. hxg5 {[%clk 0:02:37]}  hxg5 {[%clk 0:02:07]} 16. Rd1 {[%clk 0:02:11]}  Bf6 {[%clk 0:01:50]} 17. Be3 {[%clk 0:02:07]}  Ke7 {[%clk 0:01:49]} 18. Nd2 {[%clk 0:02:05]}  Nxd2 {[%clk 0:01:47]} 19. Rxd2 {[%clk 0:02:05]}  e5 {[%clk 0:01:37]} 20. Rf1 {[%clk 0:01:18]}  Rh7 {[%clk 0:01:17]} 21. f3 {[%clk 0:00:17]}  Kd8 {[%clk 0:01:10]} 22. g4 {[%clk 0:00:16]}  Bg6 {[%clk 0:01:09]} 23. Bf2 {[%clk 0:00:16]}  Kc7 {[%clk 0:01:03]} 24. Bg3 {[%clk 0:00:17]}  Rbh8 {[%clk 0:01:02]} 25. Kf2 {[%clk 0:00:15]}  Kc8 {[%clk 0:00:59]} 26. e3 {[%clk 0:00:13]}  Re8 {[%clk 0:00:48]} 27. Nb3 {[%clk 0:00:11]}  Rhh8 {[%clk 0:00:44]} 28. Nc1 {[%clk 0:00:11]}  exd4 {[%clk 0:00:40]} 29. exd4 {[%clk 0:00:11]}  Nf8 {[%clk 0:00:39]} 30. Re1 {[%clk 0:00:09]}  Ne6 {[%clk 0:00:37]} 31. Nb3 {[%clk 0:00:06]}  Nc7 {[%clk 0:00:31]} 32. Bxc7 {[%clk 0:00:05]}  Kxc7 {[%clk 0:00:30]} 33. Rxe8 {[%clk 0:00:05]}  Rxe8 {[%clk 0:00:31]} 34. Re2 {[%clk 0:00:05]}  Rxe2+ {[%clk 0:00:30]} 35. Kxe2 {[%clk 0:00:06]}  Bc2 {[%clk 0:00:30]} 36. Na1 {[%clk 0:00:06]}  Bg6 {[%clk 0:00:21]} 37. Ke3 {[%clk 0:00:06]}  Kd7 {[%clk 0:00:18]} 38. Nb3 {[%clk 0:00:06]}  Kc7 {[%clk 0:00:16]} 1/2-1/2


[Site "https://www.chess.com"]

[Event "Titled Tuesday Blitz October 31 Early 2023"]
[White "LeoLV10"]
[Black "Szente Varga, Fruzsina"]
[BlackFideId "712264"]
[WhiteElo "2541"]
[BlackElo "2321"]
[Result "1-0"]
[Round "7"]
[TimeControl "180+1"]
[Date "2023.10.31"]
[WhiteClock "0:01:16"]
[BlackClock "0:00:04"]
[Board "112"]

1. e4 {[%clk 0:03:00]}  e5 {[%clk 0:02:54]} 2. Nf3 {[%clk 0:03:01]}  Nc6 {[%clk 0:02:54]} 3. Bb5 {[%clk 0:03:01]}  a6 {[%clk 0:02:53]} 4. Ba4 {[%clk 0:03:00]}  Nf6 {[%clk 0:02:53]} 5. O-O {[%clk 0:03:00]}  Be7 {[%clk 0:02:52]} 6. c3 {[%clk 0:02:55]}  Nxe4 {[%clk 0:02:32]} 7. d4 {[%clk 0:02:51]}  exd4 {[%clk 0:02:28]} 8. cxd4 {[%clk 0:02:52]}  d5 {[%clk 0:02:23]} 9. Nc3 {[%clk 0:02:26]}  Nxc3 {[%clk 0:02:16]} 10. bxc3 {[%clk 0:02:27]}  O-O {[%clk 0:02:16]} 11. Bf4 {[%clk 0:02:24]}  Bg4 {[%clk 0:02:13]} 12. h3 {[%clk 0:02:24]}  Bh5 {[%clk 0:02:04]} 13. Qd3 {[%clk 0:02:23]}  b5 {[%clk 0:01:57]} 14. Bb3 {[%clk 0:02:21]}  Na5 {[%clk 0:01:50]} 15. Ne5 {[%clk 0:02:21]}  Nc4 {[%clk 0:01:48]} 16. Rae1 {[%clk 0:02:16]}  Nxe5 {[%clk 0:01:43]} 17. Rxe5 {[%clk 0:02:12]}  Bg6 {[%clk 0:01:43]} 18. Qe3 {[%clk 0:02:12]}  Bd6 {[%clk 0:01:27]} 19. Rxd5 {[%clk 0:02:12]}  Re8 {[%clk 0:00:56]} 20. Qg3 {[%clk 0:01:59]}  Bxf4 {[%clk 0:00:52]} 21. Qxf4 {[%clk 0:02:00]}  Qc8 {[%clk 0:00:42]} 22. Rc5 {[%clk 0:01:58]}  Re7 {[%clk 0:00:39]} 23. h4 {[%clk 0:01:56]}  h5 {[%clk 0:00:37]} 24. Qg5 {[%clk 0:01:54]}  Kf8 {[%clk 0:00:27]} 25. f4 {[%clk 0:01:39]}  Qg4 {[%clk 0:00:17]} 26. f5 {[%clk 0:01:27]}  Qxg5 {[%clk 0:00:12]} 27. hxg5 {[%clk 0:01:28]}  Bh7 {[%clk 0:00:12]} 28. g6 {[%clk 0:01:28]}  Bg8 {[%clk 0:00:12]} 29. f6 {[%clk 0:01:24]}  gxf6 {[%clk 0:00:11]} 30. Rxf6 {[%clk 0:01:24]}  Kg7 {[%clk 0:00:12]} 31. Rfc6 {[%clk 0:01:17]}  Ra7 {[%clk 0:00:09]} 32. gxf7 {[%clk 0:01:16]}  Bxf7 {[%clk 0:00:09]} 33. Rg5+ {[%clk 0:01:16]}  Kh7 {[%clk 0:00:06]} 34. Bc2+ {[%clk 0:01:16]}  Kh8 {[%clk 0:00:04]} 35. Rh6# {[%clk 0:01:16]} 1-0


[Site "https://www.chess.com"]

[Event "Titled Tuesday Blitz October 31 Early 2023"]
[White "Czerw, Dawid"]
[Black "Matthes, Aaron"]
[WhiteFideId "1145746"]
[BlackFideId "16227310"]
[WhiteElo "2505"]
[BlackElo "2306"]
[Result "0-1"]
[Round "7"]
[TimeControl "180+1"]
[Date "2023.10.31"]
[WhiteClock "0:00:00"]
[BlackClock "0:00:14"]
[Board "114"]

1. e4 {[%clk 0:03:00]}  c6 {[%clk 0:02:56]} 2. Nc3 {[%clk 0:03:00]}  d5 {[%clk 0:02:57]} 3. Qf3 {[%clk 0:03:01]}  dxe4 {[%clk 0:02:56]} 4. Nxe4 {[%clk 0:03:02]}  Nf6 {[%clk 0:02:56]} 5. Bc4 {[%clk 0:03:02]}  Nbd7 {[%clk 0:02:52]} 6. d4 {[%clk 0:03:01]}  e6 {[%clk 0:02:51]} 7. Ne2 {[%clk 0:03:01]}  Be7 {[%clk 0:02:51]} 8. Bd2 {[%clk 0:03:01]}  O-O {[%clk 0:02:51]} 9. O-O-O {[%clk 0:03:01]}  a5 {[%clk 0:02:39]} 10. Kb1 {[%clk 0:03:00]}  b5 {[%clk 0:02:33]} 11. Bd3 {[%clk 0:02:55]}  Bb7 {[%clk 0:02:33]} 12. Nxf6+ {[%clk 0:02:51]}  Nxf6 {[%clk 0:02:34]} 13. g4 {[%clk 0:02:49]}  Nd5 {[%clk 0:02:19]} 14. h4 {[%clk 0:02:43]}  c5 {[%clk 0:02:14]} 15. Be4 {[%clk 0:02:40]}  cxd4 {[%clk 0:02:06]} 16. Nxd4 {[%clk 0:02:32]}  Qb6 {[%clk 0:02:04]} 17. Nf5 {[%clk 0:02:14]}  exf5 {[%clk 0:01:54]} 18. Bxd5 {[%clk 0:02:14]}  fxg4 {[%clk 0:01:55]} 19. Qg2 {[%clk 0:02:08]}  Bxd5 {[%clk 0:01:54]} 20. Qxd5 {[%clk 0:02:08]}  Rad8 {[%clk 0:01:39]} 21. Qf5 {[%clk 0:01:58]}  Qg6 {[%clk 0:01:28]} 22. Qxb5 {[%clk 0:01:50]}  Rb8 {[%clk 0:01:20]} 23. Qe2 {[%clk 0:01:40]}  Rfc8 {[%clk 0:01:17]} 24. Bc1 {[%clk 0:01:34]}  a4 {[%clk 0:01:13]} 25. h5 {[%clk 0:01:31]}  Qf6 {[%clk 0:00:51]} 26. Rd7 {[%clk 0:01:14]}  Ba3 {[%clk 0:00:50]} 27. c3 {[%clk 0:01:02]}  Bxb2 {[%clk 0:00:42]} 28. Bxb2 {[%clk 0:00:49]}  a3 {[%clk 0:00:42]} 29. Rd2 {[%clk 0:00:42]}  Qxc3 {[%clk 0:00:36]} 30. h6 {[%clk 0:00:23]}  gxh6 {[%clk 0:00:18]} 31. Qxg4+ {[%clk 0:00:11]}  Kf8 {[%clk 0:00:18]} 32. Qe2 {[%clk 0:00:02]}  Re8 {[%clk 0:00:14]} 33. Qd1 {[%clk 0:00:00]}  Rxb2+ {[%clk 0:00:14]} 0-1


[Site "https://www.chess.com"]

[Event "Titled Tuesday Blitz October 31 Early 2023"]
[White "Nekoo04"]
[Black "Aash20"]
[WhiteElo "2280"]
[BlackElo "2485"]
[Result "1-0"]
[Round "7"]
[TimeControl "180+1"]
[Date "2023.10.31"]
[WhiteClock "0:00:54"]
[BlackClock "0:01:11"]
[Board "116"]

1. d4 {[%clk 0:02:46]}  d5 {[%clk 0:02:53]} 2. c4 {[%clk 0:02:46]}  c6 {[%clk 0:02:52]} 3. Nf3 {[%clk 0:02:42]}  Nf6 {[%clk 0:02:52]} 4. g3 {[%clk 0:02:42]}  g6 {[%clk 0:02:38]} 5. Bg2 {[%clk 0:02:42]}  Bg7 {[%clk 0:02:35]} 6. O-O {[%clk 0:02:40]}  O-O {[%clk 0:02:33]} 7. b3 {[%clk 0:02:33]}  Ne4 {[%clk 0:02:09]} 8. Bb2 {[%clk 0:02:33]}  Bg4 {[%clk 0:02:01]} 9. Nc3 {[%clk 0:02:23]}  Bxf3 {[%clk 0:01:57]} 10. Bxf3 {[%clk 0:02:22]}  Nxc3 {[%clk 0:01:56]} 11. Bxc3 {[%clk 0:02:08]}  e6 {[%clk 0:01:56]} 12. e4 {[%clk 0:02:06]}  dxe4 {[%clk 0:01:55]} 13. Bxe4 {[%clk 0:02:05]}  Nd7 {[%clk 0:01:55]} 14. Qd2 {[%clk 0:02:03]}  Nf6 {[%clk 0:01:54]} 15. Bg2 {[%clk 0:02:03]}  Qb6 {[%clk 0:01:53]} 16. Rad1 {[%clk 0:01:55]}  Qc7 {[%clk 0:01:52]} 17. d5 {[%clk 0:01:45]}  exd5 {[%clk 0:01:50]} 18. cxd5 {[%clk 0:01:38]}  Nxd5 {[%clk 0:01:48]} 19. Bxg7 {[%clk 0:01:38]}  Kxg7 {[%clk 0:01:47]} 20. Bxd5 {[%clk 0:01:38]}  cxd5 {[%clk 0:01:46]} 21. Qxd5 {[%clk 0:01:39]}  Rad8 {[%clk 0:01:46]} 22. Qf3 {[%clk 0:01:32]}  Rxd1 {[%clk 0:01:44]} 23. Rxd1 {[%clk 0:01:33]}  Rd8 {[%clk 0:01:44]} 24. Rxd8 {[%clk 0:01:31]}  Qxd8 {[%clk 0:01:44]} 25. Qxb7 {[%clk 0:01:32]}  a5 {[%clk 0:01:41]} 26. a4 {[%clk 0:01:17]}  h5 {[%clk 0:01:40]} 27. Kg2 {[%clk 0:01:16]}  h4 {[%clk 0:01:37]} 28. Qe4 {[%clk 0:01:14]}  hxg3 {[%clk 0:01:36]} 29. hxg3 {[%clk 0:01:15]}  Qb6 {[%clk 0:01:32]} 30. Qe5+ {[%clk 0:01:10]}  f6 {[%clk 0:01:26]} 31. Qb5 {[%clk 0:01:07]}  Qc7 {[%clk 0:01:25]} 32. b4 {[%clk 0:01:05]}  axb4 {[%clk 0:01:25]} 33. a5 {[%clk 0:01:01]}  Qc3 {[%clk 0:01:24]} 34. a6 {[%clk 0:00:59]}  b3 {[%clk 0:01:17]} 35. a7 {[%clk 0:00:58]}  b2 {[%clk 0:01:14]} 36. Qb7+ {[%clk 0:00:56]}  Kh6 {[%clk 0:01:14]} 37. a8=Q {[%clk 0:00:56]}  Qc2 {[%clk 0:01:11]} 38. Qh8+ {[%clk 0:00:55]}  Kg5 {[%clk 0:01:11]} 39. Qh4+ {[%clk 0:00:54]}  Kf5 {[%clk 0:01:11]} 40. Qd7+ {[%clk 0:00:53]}  Ke5 {[%clk 0:01:11]} 41. Qhd4# {[%clk 0:00:54]} 1-0


[Site "https://www.chess.com"]

[Event "Titled Tuesday Blitz October 31 Early 2023"]
[White "Zivic, Dragan"]
[Black "Camilla_Lee"]
[WhiteFideId "904740"]
[WhiteElo "2268"]
[BlackElo "2483"]
[Result "0-1"]
[Round "7"]
[TimeControl "180+1"]
[Date "2023.10.31"]
[WhiteClock "0:01:00"]
[BlackClock "0:00:50"]
[Board "117"]

1. c4 {[%clk 0:02:56]}  e6 {[%clk 0:02:59]} 2. Nc3 {[%clk 0:02:56]}  d5 {[%clk 0:02:59]} 3. cxd5 {[%clk 0:02:56]}  exd5 {[%clk 0:03:00]} 4. d4 {[%clk 0:02:56]}  Nf6 {[%clk 0:03:00]} 5. Bg5 {[%clk 0:02:57]}  Bb4 {[%clk 0:03:00]} 6. Qa4+ {[%clk 0:02:50]}  Nc6 {[%clk 0:03:00]} 7. e3 {[%clk 0:02:50]}  Bd7 {[%clk 0:02:59]} 8. Bb5 {[%clk 0:02:49]}  O-O {[%clk 0:02:56]} 9. Bxc6 {[%clk 0:02:45]}  Bxc3+ {[%clk 0:02:56]} 10. bxc3 {[%clk 0:02:44]}  Bxc6 {[%clk 0:02:56]} 11. Qc2 {[%clk 0:02:43]}  h6 {[%clk 0:02:56]} 12. Bxf6 {[%clk 0:02:43]}  Qxf6 {[%clk 0:02:55]} 13. Ne2 {[%clk 0:02:41]}  Bb5 {[%clk 0:02:51]} 14. O-O {[%clk 0:02:40]}  Bc4 {[%clk 0:02:38]} 15. Rfe1 {[%clk 0:02:40]}  b5 {[%clk 0:02:20]} 16. Ng3 {[%clk 0:02:39]}  a5 {[%clk 0:02:16]} 17. a4 {[%clk 0:02:37]}  b4 {[%clk 0:02:15]} 18. cxb4 {[%clk 0:02:28]}  axb4 {[%clk 0:02:13]} 19. e4 {[%clk 0:02:28]}  Qc6 {[%clk 0:01:54]} 20. exd5 {[%clk 0:02:22]}  Bxd5 {[%clk 0:01:53]} 21. Qxc6 {[%clk 0:02:19]}  Bxc6 {[%clk 0:01:54]} 22. a5 {[%clk 0:02:18]}  Rfb8 {[%clk 0:01:51]} 23. Rec1 {[%clk 0:02:16]}  Ra6 {[%clk 0:01:49]} 24. Rab1 {[%clk 0:02:08]}  Bd5 {[%clk 0:01:41]} 25. Rc5 {[%clk 0:02:06]}  c6 {[%clk 0:01:39]} 26. f3 {[%clk 0:01:56]}  b3 {[%clk 0:01:37]} 27. Rb2 {[%clk 0:01:52]}  Rb4 {[%clk 0:01:28]} 28. Nf5 {[%clk 0:01:51]}  Be6 {[%clk 0:01:12]} 29. Ne7+ {[%clk 0:01:42]}  Kf8 {[%clk 0:01:12]} 30. Nxc6 {[%clk 0:01:41]}  Rc4 {[%clk 0:01:03]} 31. Rxb3 {[%clk 0:01:25]}  Rxc6 {[%clk 0:00:52]} 32. Rb8+ {[%clk 0:01:00]}  Ke7 {[%clk 0:00:50]} 0-1


[Site "https://www.chess.com"]